[Event "*** Titled Tuesday Blitz"]
[Site "Chess.com"]
[Date "2020.05.05"]
[Round "4"]
[White "plumalka"]
[Black "Arjun2002"]
[Result "0-1"]
[WhiteElo "2453"]
[BlackElo "2647"]
[TimeControl "180+1"]
[EndTime "10:42:34 PDT"]
[Termination "Arjun2002 won by resignation"]

1. e4 {[%clk 0:03:00.9]} 1... c5 {[%clk 0:02:59.6]} 2. Nf3 {[%clk 0:03:01]} 2...
Nc6 {[%clk 0:02:59.9]} 3. d4 {[%clk 0:03:01.6]} 3... cxd4 {[%clk 0:03:00.8]} 4.
Nxd4 {[%clk 0:03:02.4]} 4... Nf6 {[%clk 0:03:01.2]} 5. Nc3 {[%clk 0:03:00.1]}
5... d6 {[%clk 0:03:01.5]} 6. Bg5 {[%clk 0:02:58.5]} 6... e6 {[%clk 0:02:59.1]}
7. Bb5 {[%clk 0:02:58.4]} 7... Bd7 {[%clk 0:02:54.4]} 8. Bxc6 {[%clk 0:02:58.2]}
8... bxc6 {[%clk 0:02:53.3]} 9. Qf3 {[%clk 0:02:56.8]} 9... Be7 {[%clk
0:02:41.2]} 10. e5 {[%clk 0:02:46.1]} 10... Nd5 {[%clk 0:02:17.5]} 11. Bxe7
{[%clk 0:02:44.1]} 11... Qxe7 {[%clk 0:02:17.3]} 12. exd6 {[%clk 0:02:44.1]}
12... Qxd6 {[%clk 0:02:16.8]} 13. O-O-O {[%clk 0:02:41.9]} 13... O-O {[%clk
0:02:09.7]} 14. Nb3 {[%clk 0:02:25.6]} 14... a5 {[%clk 0:02:05.6]} 15. Ne4
{[%clk 0:02:22.1]} 15... Qe7 {[%clk 0:01:58.3]} 16. a4 {[%clk 0:02:02.5]} 16...
Rfb8 {[%clk 0:01:47.9]} 17. Nec5 {[%clk 0:01:58.2]} 17... Be8 {[%clk 0:01:43.9]}
18. h4 {[%clk 0:01:53.7]} 18... Rb6 {[%clk 0:01:35.2]} 19. Rd4 {[%clk
0:01:46.2]} 19... Rab8 {[%clk 0:01:33.3]} 20. Re1 {[%clk 0:01:31.6]} 20... Rb4
{[%clk 0:01:27.1]} 21. Qe4 {[%clk 0:01:20.9]} 21... Rxd4 {[%clk 0:01:16.6]} 22.
Qxd4 {[%clk 0:01:21.8]} 22... Rb4 {[%clk 0:01:16.6]} 23. Qd2 {[%clk 0:00:57.9]}
23... Qxh4 {[%clk 0:01:08.7]} 24. Nxa5 {[%clk 0:00:54]} 24... Rd4 {[%clk
0:01:08.7]} 25. Qe2 {[%clk 0:00:47.6]} 25... Qg5+ {[%clk 0:00:55.7]} 26. Kb1
{[%clk 0:00:41.4]} 26... Qxg2 {[%clk 0:00:55.3]} 27. Nxe6 {[%clk 0:00:32.6]}
27... Rb4 {[%clk 0:00:26]} 28. Nb3 {[%clk 0:00:17.3]} 28... h6 {[%clk
0:00:22.6]} 29. Nec5 {[%clk 0:00:13.2]} 29... Nf6 {[%clk 0:00:21.2]} 30. a5
{[%clk 0:00:13.4]} 30... Qd5 {[%clk 0:00:18.2]} 31. a6 {[%clk 0:00:13.3]} 31...
Rb8 {[%clk 0:00:10]} 32. Rd1 {[%clk 0:00:13.1]} 32... Qf5 {[%clk 0:00:08.1]} 33.
a7 {[%clk 0:00:12.4]} 33... Ra8 {[%clk 0:00:08.5]} 34. Qe7 {[%clk 0:00:12.3]}
34... Nd5 {[%clk 0:00:04.5]} 35. Qb7 {[%clk 0:00:11.3]} 35... Qc8 {[%clk
0:00:04.4]} 36. Qxc8 {[%clk 0:00:08.2]} 36... Rxc8 {[%clk 0:00:05.3]} 37. c4
{[%clk 0:00:08.1]} 37... Nb6 {[%clk 0:00:04.3]} 38. Nb7 {[%clk 0:00:03.8]} 38...
Ra8 {[%clk 0:00:04.3]} 39. Nd6 {[%clk 0:00:03.4]} 39... Kf8 {[%clk 0:00:04.4]}
40. c5 {[%clk 0:00:03.8]} 40... Nd7 {[%clk 0:00:04]} 41. Na5 {[%clk 0:00:03.5]}
41... Rxa7 {[%clk 0:00:04.2]} 42. Nxc6 {[%clk 0:00:04]} 42... Rc7 {[%clk
0:00:04.5]} 43. Re1 {[%clk 0:00:04.3]} 43... Nf6 {[%clk 0:00:02.7]} 44. Nd4
{[%clk 0:00:02.8]} 44... Rxc5 {[%clk 0:00:02.9]} 45. b4 {[%clk 0:00:03.4]} 45...
Rd5 {[%clk 0:00:03.1]} 46. Nxe8 {[%clk 0:00:02.4]} 46... Nxe8 {[%clk 0:00:04]}
47. Nc2 {[%clk 0:00:02.3]} 47... Nd6 {[%clk 0:00:03.1]} 48. Kb2 {[%clk
0:00:02.8]} 48... g5 {[%clk 0:00:03.1]} 49. Kc3 {[%clk 0:00:03.3]} 49... h5
{[%clk 0:00:03.6]} 50. Ne3 {[%clk 0:00:03.8]} 50... Rf5 {[%clk 0:00:03.3]} 51.
Rd1 {[%clk 0:00:04.3]} 51... Rf6 {[%clk 0:00:02.8]} 52. Nd5 {[%clk 0:00:03.1]}
52... Re6 {[%clk 0:00:03]} 53. Rd2 {[%clk 0:00:02.5]} 53... h4 {[%clk
0:00:02.8]} 54. Kd4 {[%clk 0:00:02.7]} 54... h3 {[%clk 0:00:03.1]} 55. Kc5
{[%clk 0:00:03.2]} 55... h2 {[%clk 0:00:03.4]} 56. Rd1 {[%clk 0:00:03.8]} 56...
Rh6 {[%clk 0:00:03.7]} 57. Rh1 {[%clk 0:00:03.7]} 57... Ne4+ {[%clk 0:00:04.3]}
58. Kd4 {[%clk 0:00:03.9]} 58... Nxf2 {[%clk 0:00:05.2]} 59. Rxh2 {[%clk
0:00:03.3]} 59... Rxh2 {[%clk 0:00:05.4]} 60. b5 {[%clk 0:00:04.2]} 60... Rh1
{[%clk 0:00:05.8]} 61. b6 {[%clk 0:00:04.5]} 61... Rb1 {[%clk 0:00:05.8]} 62.
Ke3 {[%clk 0:00:05.1]} 62... Ng4+ {[%clk 0:00:05.3]} 63. Kd4 {[%clk 0:00:05.6]}
63... Nh6 {[%clk 0:00:04.8]} 64. Kc5 {[%clk 0:00:06.1]} 64... Nf5 {[%clk
0:00:04.5]} 65. Kc6 {[%clk 0:00:06.2]} 65... g4 {[%clk 0:00:04.2]} 66. b7 {[%clk
0:00:06.4]} 66... Rxb7 {[%clk 0:00:04.1]} 67. Kxb7 {[%clk 0:00:06.5]} 67... g3
{[%clk 0:00:04.5]} 68. Nf4 {[%clk 0:00:07.2]} 68... Ke7 {[%clk 0:00:04.8]} 69.
Kc6 {[%clk 0:00:07]} 69... Ne3 {[%clk 0:00:04.9]} 70. Kc5 {[%clk 0:00:04.3]}
70... Kf6 {[%clk 0:00:05.2]} 71. Ng2 {[%clk 0:00:05.2]} 71... Nxg2 {[%clk
0:00:04.8]} 72. Kd4 {[%clk 0:00:05.3]} 72... Nh4 {[%clk 0:00:05.7]} 73. Ke3
{[%clk 0:00:05.8]} 73... g2 {[%clk 0:00:06.6]} 74. Kf2 {[%clk 0:00:06.4]} 74...
Kg5 {[%clk 0:00:06.8]} 75. Kg1 {[%clk 0:00:07.3]} 75... Kg4 {[%clk 0:00:07.3]}
76. Kh2 {[%clk 0:00:08.2]} 76... f5 {[%clk 0:00:06.9]} 77. Kg1 {[%clk
0:00:09.1]} 77... Kh3 {[%clk 0:00:06.8]} 78. Kf2 {[%clk 0:00:10]} 78... Kh2
{[%clk 0:00:07.2]} 0-1

[Event "*** Titled Tuesday Blitz"]
[Site "Chess.com"]
[Date "2020.05.05"]
[Round "4"]
[White "BikingBrian"]
[Black "marszach123"]
[Result "1/2-1/2"]
[WhiteElo "2311"]
[BlackElo "2145"]
[TimeControl "180+1"]
[EndTime "10:42:34 PDT"]
[Termination "Game drawn by repetition"]

1. d4 {[%clk 0:03:00.9]} 1... Nf6 {[%clk 0:02:59.4]} 2. Bg5 {[%clk 0:03:00.4]}
2... Ne4 {[%clk 0:02:59.1]} 3. Bf4 {[%clk 0:03:00.2]} 3... c5 {[%clk 0:02:59.5]}
4. f3 {[%clk 0:03:00.1]} 4... Qa5+ {[%clk 0:02:58.5]} 5. c3 {[%clk 0:03:00]}
5... Nf6 {[%clk 0:02:58]} 6. d5 {[%clk 0:02:58.3]} 6... e6 {[%clk 0:02:52.7]} 7.
e4 {[%clk 0:02:55.5]} 7... exd5 {[%clk 0:02:51.2]} 8. exd5 {[%clk 0:02:56.4]}
8... d6 {[%clk 0:02:51.2]} 9. Na3 {[%clk 0:02:51.7]} 9... Be7 {[%clk 0:02:49]}
10. Nc4 {[%clk 0:02:50.8]} 10... Qc7 {[%clk 0:02:48.4]} 11. a4 {[%clk
0:02:50.8]} 11... O-O {[%clk 0:02:37.5]} 12. Bd3 {[%clk 0:02:43]} 12... Nxd5
{[%clk 0:02:21.6]} 13. Bxh7+ {[%clk 0:02:42.2]} 13... Kxh7 {[%clk 0:02:21.1]}
14. Qxd5 {[%clk 0:02:42.9]} 14... Be6 {[%clk 0:02:18.7]} 15. Qh5+ {[%clk
0:02:32.5]} 15... Kg8 {[%clk 0:02:19.1]} 16. Ne3 {[%clk 0:02:27.7]} 16... Re8
{[%clk 0:02:08]} 17. Nh3 {[%clk 0:02:15.4]} 17... g6 {[%clk 0:02:02.1]} 18. Qh6
{[%clk 0:02:12.9]} 18... Bf8 {[%clk 0:02:01.8]} 19. Qh4 {[%clk 0:02:12.5]} 19...
Bxh3 {[%clk 0:01:43.2]} 20. Qxh3 {[%clk 0:02:10.8]} 20... Qd7 {[%clk 0:01:34.3]}
21. Qxd7 {[%clk 0:02:07.3]} 21... Nxd7 {[%clk 0:01:34.3]} 22. O-O-O {[%clk
0:02:04.2]} 22... Ne5 {[%clk 0:01:27.4]} 23. Nd5 {[%clk 0:01:59.4]} 23... Rec8
{[%clk 0:01:11.5]} 24. Rhe1 {[%clk 0:01:52.5]} 24... Nc6 {[%clk 0:00:51.6]} 25.
Bxd6 {[%clk 0:01:37.6]} 25... Bxd6 {[%clk 0:00:47.1]} 26. Nf6+ {[%clk
0:01:37.7]} 26... Kg7 {[%clk 0:00:46.7]} 27. Rxd6 {[%clk 0:01:38.4]} 27... Rd8
{[%clk 0:00:41.8]} 28. Red1 {[%clk 0:01:31.2]} 28... Rh8 {[%clk 0:00:22.1]} 29.
h3 {[%clk 0:01:23.4]} 29... Rad8 {[%clk 0:00:18.7]} 30. Ne4 {[%clk 0:01:20.2]}
30... Rxd6 {[%clk 0:00:17.5]} 31. Rxd6 {[%clk 0:01:18.1]} 31... c4 {[%clk
0:00:16.5]} 32. Rd7 {[%clk 0:01:17.1]} 32... Na5 {[%clk 0:00:14.9]} 33. Nd6
{[%clk 0:01:15.2]} 33... Kf6 {[%clk 0:00:10.7]} 34. Nxb7 {[%clk 0:01:12.6]}
34... Nxb7 {[%clk 0:00:09.7]} 35. Rxb7 {[%clk 0:01:12.2]} 35... a5 {[%clk
0:00:07.9]} 36. Rc7 {[%clk 0:01:10.1]} 36... Re8 {[%clk 0:00:06.1]} 37. Kd2
{[%clk 0:01:08]} 37... Rd8+ {[%clk 0:00:05.4]} 38. Ke2 {[%clk 0:01:08.1]} 38...
Re8+ {[%clk 0:00:05.3]} 39. Kf2 {[%clk 0:01:08.3]} 39... Rd8 {[%clk 0:00:05.8]}
40. Ke3 {[%clk 0:01:04.9]} 40... Re8+ {[%clk 0:00:05.4]} 41. Kf2 {[%clk
0:01:02.4]} 41... Rd8 {[%clk 0:00:05.4]} 42. Rxc4 {[%clk 0:01:02.3]} 42... Rd2+
{[%clk 0:00:05.1]} 43. Kg3 {[%clk 0:01:01.6]} 43... Rxb2 {[%clk 0:00:05.6]} 44.
Rc5 {[%clk 0:01:01.5]} 44... Rc2 {[%clk 0:00:04.7]} 45. c4 {[%clk 0:01:00.8]}
45... Kg7 {[%clk 0:00:02.5]} 46. Rc7 {[%clk 0:00:57.9]} 46... Rc3 {[%clk
0:00:02.7]} 47. c5 {[%clk 0:00:57.4]} 47... Ra3 {[%clk 0:00:03.3]} 48. c6 {[%clk
0:00:56.6]} 48... Rxa4 {[%clk 0:00:03.9]} 49. Rc8 {[%clk 0:00:56.8]} 49... Rc4
{[%clk 0:00:04.3]} 50. c7 {[%clk 0:00:56.3]} 50... a4 {[%clk 0:00:04.9]} 51. h4
{[%clk 0:00:53.5]} 51... a3 {[%clk 0:00:04.6]} 52. Ra8 {[%clk 0:00:52.9]} 52...
Rxc7 {[%clk 0:00:03.6]} 53. Rxa3 {[%clk 0:00:52.9]} 53... Rd7 {[%clk 0:00:04.1]}
54. Re3 {[%clk 0:00:52.6]} 54... Rc7 {[%clk 0:00:04.1]} 55. Kh3 {[%clk
0:00:52.5]} 55... Rb7 {[%clk 0:00:04.3]} 56. g4 {[%clk 0:00:52.6]} 56... Ra7
{[%clk 0:00:04.7]} 57. Kg3 {[%clk 0:00:52.8]} 57... Rb7 {[%clk 0:00:05]} 58. Rc3
{[%clk 0:00:51.9]} 58... Ra7 {[%clk 0:00:05.3]} 59. Re3 {[%clk 0:00:50.8]} 59...
Rb7 {[%clk 0:00:05.6]} 60. Kf4 {[%clk 0:00:51.2]} 60... Ra7 {[%clk 0:00:06]} 61.
Re4 {[%clk 0:00:48.6]} 61... Rb7 {[%clk 0:00:05.6]} 62. g5 {[%clk 0:00:41.4]}
62... Ra7 {[%clk 0:00:05.6]} 63. Kg4 {[%clk 0:00:41.2]} 63... Rb7 {[%clk
0:00:05.8]} 64. h5 {[%clk 0:00:40.6]} 64... gxh5+ {[%clk 0:00:05.2]} 65. Kxh5
{[%clk 0:00:40.9]} 65... Rb1 {[%clk 0:00:05.4]} 66. f4 {[%clk 0:00:40.1]} 66...
Rh1+ {[%clk 0:00:05.2]} 67. Kg4 {[%clk 0:00:40.3]} 67... Rg1+ {[%clk 0:00:04.9]}
68. Kf5 {[%clk 0:00:40.5]} 68... Ra1 {[%clk 0:00:05.5]} 69. Re5 {[%clk 0:00:38]}
69... Rb1 {[%clk 0:00:05.4]} 70. Rd5 {[%clk 0:00:38]} 70... Ra1 {[%clk
0:00:05.4]} 71. Kg4 {[%clk 0:00:36.4]} 71... Rb1 {[%clk 0:00:05.4]} 72. f5
{[%clk 0:00:33.5]} 72... Rg1+ {[%clk 0:00:05.3]} 73. Kf4 {[%clk 0:00:33.5]}
73... Rf1+ {[%clk 0:00:05.7]} 74. Kg4 {[%clk 0:00:30.5]} 74... Rg1+ {[%clk
0:00:05.8]} 75. Kf4 {[%clk 0:00:26.7]} 75... Rf1+ {[%clk 0:00:06]} 76. Ke5
{[%clk 0:00:26.6]} 76... Re1+ {[%clk 0:00:06.2]} 77. Kd6 {[%clk 0:00:24.7]}
77... Rg1 {[%clk 0:00:05.7]} 78. f6+ {[%clk 0:00:24.4]} 78... Kg6 {[%clk
0:00:05.3]} 79. Ke7 {[%clk 0:00:24.5]} 79... Re1+ {[%clk 0:00:04.8]} 80. Kf8
{[%clk 0:00:24.4]} 80... Ra1 {[%clk 0:00:02.8]} 81. Re5 {[%clk 0:00:21.9]} 81...
Ra8+ {[%clk 0:00:01.9]} 82. Re8 {[%clk 0:00:21.8]} 82... Ra5 {[%clk 0:00:02.2]}
83. Re7 {[%clk 0:00:21]} 83... Ra8+ {[%clk 0:00:02.1]} 84. Re8 {[%clk 0:00:21]}
84... Ra5 {[%clk 0:00:02.8]} 85. Re7 {[%clk 0:00:19.7]} 85... Ra8+ {[%clk
0:00:02.7]} 86. Re8 {[%clk 0:00:20.2]} 1/2-1/2

[Event "*** Titled Tuesday Blitz"]
[Site "Chess.com"]
[Date "2020.05.05"]
[Round "4"]
[White "davidkalashian"]
[Black "Kislov_Oleg"]
[Result "1-0"]
[WhiteElo "2538"]
[BlackElo "2327"]
[TimeControl "180+1"]
[EndTime "10:42:49 PDT"]
[Termination "davidkalashian won by resignation"]

1. e4 {[%clk 0:03:00.9]} 1... e6 {[%clk 0:03:00.1]} 2. d4 {[%clk 0:03:00.1]}
2... d5 {[%clk 0:03:00.4]} 3. Nd2 {[%clk 0:03:00.4]} 3... Nf6 {[%clk 0:03:00]}
4. e5 {[%clk 0:03:00.2]} 4... Nfd7 {[%clk 0:03:00.7]} 5. Be2 {[%clk 0:03:01]}
5... c5 {[%clk 0:03:00.5]} 6. c3 {[%clk 0:02:59.7]} 6... Nc6 {[%clk 0:02:59.9]}
7. Ngf3 {[%clk 0:02:57.8]} 7... cxd4 {[%clk 0:02:55.2]} 8. cxd4 {[%clk
0:02:56.8]} 8... f6 {[%clk 0:02:50.4]} 9. exf6 {[%clk 0:02:51.4]} 9... Nxf6
{[%clk 0:02:50]} 10. Nf1 {[%clk 0:02:36]} 10... Ne4 {[%clk 0:02:43.6]} 11. Ng3
{[%clk 0:02:29.5]} 11... Bb4+ {[%clk 0:02:41.2]} 12. Kf1 {[%clk 0:02:15.4]}
12... O-O {[%clk 0:02:38.4]} 13. Be3 {[%clk 0:02:15.3]} 13... Qf6 {[%clk
0:02:25.3]} 14. Bd3 {[%clk 0:02:07.1]} 14... e5 {[%clk 0:02:08.9]} 15. Nxe4
{[%clk 0:02:02.5]} 15... dxe4 {[%clk 0:02:08.3]} 16. Bxe4 {[%clk 0:02:03.4]}
16... exd4 {[%clk 0:02:06.9]} 17. Nxd4 {[%clk 0:01:59.9]} 17... Bc5 {[%clk
0:01:47.1]} 18. Nf3 {[%clk 0:01:31.3]} 18... Bxe3 {[%clk 0:01:45.2]} 19. fxe3
{[%clk 0:01:24.5]} 19... Bg4 {[%clk 0:01:41.6]} 20. Kg1 {[%clk 0:01:21.2]} 20...
Rad8 {[%clk 0:01:12.2]} 21. Qb3+ {[%clk 0:01:18.4]} 21... Kh8 {[%clk 0:01:10.1]}
22. h3 {[%clk 0:01:18.1]} 22... Bxf3 {[%clk 0:01:05.6]} 23. Bxf3 {[%clk
0:01:15.1]} 23... Ne5 {[%clk 0:01:03.6]} 24. Rf1 {[%clk 0:01:13.8]} 24... Rd2
{[%clk 0:00:57.7]} 25. Be2 {[%clk 0:00:33.4]} 25... Qe7 {[%clk 0:00:42]} 26.
Rxf8+ {[%clk 0:00:32.3]} 26... Qxf8 {[%clk 0:00:42.1]} 27. Qb5 {[%clk
0:00:30.7]} 27... h6 {[%clk 0:00:32.2]} 28. Qxe5 {[%clk 0:00:26]} 28... Rxe2
{[%clk 0:00:32.4]} 29. Kh2 {[%clk 0:00:26.5]} 29... Qf3 {[%clk 0:00:21.4]} 30.
Qg3 {[%clk 0:00:17.5]} 30... Qxe3 {[%clk 0:00:14.5]} 31. Qxe3 {[%clk 0:00:16.6]}
31... Rxe3 {[%clk 0:00:15.4]} 32. Rc1 {[%clk 0:00:15.3]} 32... Re2 {[%clk
0:00:15]} 33. Rb1 {[%clk 0:00:15.6]} 33... g5 {[%clk 0:00:14.2]} 34. Kg3 {[%clk
0:00:16.5]} 34... Kg7 {[%clk 0:00:14.5]} 35. Kf3 {[%clk 0:00:17.4]} 35... Rc2
{[%clk 0:00:14.6]} 36. a4 {[%clk 0:00:17.4]} 36... Kf6 {[%clk 0:00:13.9]} 37. b4
{[%clk 0:00:17.9]} 37... Kf5 {[%clk 0:00:12.5]} 38. a5 {[%clk 0:00:17]} 38...
Rc3+ {[%clk 0:00:12.7]} 39. Kf2 {[%clk 0:00:17.3]} 39... a6 {[%clk 0:00:12.5]}
40. Rd1 {[%clk 0:00:15.9]} 40... Rc4 {[%clk 0:00:09.7]} 41. b5 {[%clk
0:00:14.9]} 41... axb5 {[%clk 0:00:07.5]} 42. Rd5+ {[%clk 0:00:15.3]} 42... Kf4
{[%clk 0:00:07]} 43. Rxb5 {[%clk 0:00:16.2]} 43... Rc2+ {[%clk 0:00:07.2]} 44.
Kg1 {[%clk 0:00:16.2]} 44... Ra2 {[%clk 0:00:07.8]} 45. Rb4+ {[%clk 0:00:14.6]}
45... Kf5 {[%clk 0:00:07]} 46. Rb5+ {[%clk 0:00:14.7]} 46... Kf4 {[%clk
0:00:07.3]} 47. Kh2 {[%clk 0:00:14.5]} 47... h5 {[%clk 0:00:06.5]} 48. Rb4+
{[%clk 0:00:13.6]} 48... Kf5 {[%clk 0:00:06.8]} 49. Rb5+ {[%clk 0:00:14.5]}
49... Kf4 {[%clk 0:00:07.2]} 50. h4 {[%clk 0:00:13]} 50... gxh4 {[%clk
0:00:05.7]} 51. Rxh5 {[%clk 0:00:12.4]} 51... Kg4 {[%clk 0:00:06.1]} 52. Rb5
{[%clk 0:00:12.8]} 52... Kf4 {[%clk 0:00:06.1]} 53. Rb4+ {[%clk 0:00:12.8]}
53... Kg5 {[%clk 0:00:05.9]} 54. Rb5+ {[%clk 0:00:13.4]} 54... Kh6 {[%clk
0:00:05.6]} 55. Kh3 {[%clk 0:00:11.1]} 55... Kg6 {[%clk 0:00:06]} 56. Rb6+
{[%clk 0:00:10.2]} 56... Kf5 {[%clk 0:00:05.7]} 57. Rb5+ {[%clk 0:00:10.3]}
57... Ke6 {[%clk 0:00:05.3]} 58. Rxb7 {[%clk 0:00:08.6]} 58... Rxa5 {[%clk
0:00:04.7]} 59. Kxh4 {[%clk 0:00:09.5]} 59... Kf6 {[%clk 0:00:05]} 60. Rb6+
{[%clk 0:00:09.3]} 60... Kg7 {[%clk 0:00:05.2]} 61. g4 {[%clk 0:00:10.2]} 61...
Ra7 {[%clk 0:00:05.1]} 62. Kh5 {[%clk 0:00:08.9]} 62... Rd7 {[%clk 0:00:05.5]}
63. Kg5 {[%clk 0:00:09]} 63... Re7 {[%clk 0:00:05.7]} 64. Rd6 {[%clk 0:00:08.1]}
64... Re5+ {[%clk 0:00:05.3]} 65. Kf4 {[%clk 0:00:07.8]} 65... Re7 {[%clk
0:00:04]} 66. Kf5 {[%clk 0:00:06.5]} 66... Rf7+ {[%clk 0:00:04.3]} 67. Kg5
{[%clk 0:00:05.6]} 67... Re7 {[%clk 0:00:04.7]} 68. Rg6+ {[%clk 0:00:06.1]}
68... Kh7 {[%clk 0:00:03.1]} 69. Ra6 {[%clk 0:00:07]} 69... Kg7 {[%clk
0:00:03.3]} 70. Kh5 {[%clk 0:00:06.1]} 70... Kh7 {[%clk 0:00:03.5]} 71. g5
{[%clk 0:00:07]} 71... Kg7 {[%clk 0:00:03.8]} 72. Rg6+ {[%clk 0:00:07.1]} 72...
Kh7 {[%clk 0:00:02.7]} 73. Rh6+ {[%clk 0:00:08]} 73... Kg7 {[%clk 0:00:03.2]}
74. Rd6 {[%clk 0:00:08.8]} 74... Rf7 {[%clk 0:00:02.5]} 75. Kg4 {[%clk
0:00:09.7]} 75... Kh7 {[%clk 0:00:02.8]} 76. g6+ {[%clk 0:00:09]} 76... Kg7
{[%clk 0:00:03.1]} 77. gxf7 {[%clk 0:00:09.9]} 1-0

[Event "*** Titled Tuesday Blitz"]
[Site "Chess.com"]
[Date "2020.05.05"]
[Round "4"]
[White "mortngabriel"]
[Black "rasmussvane"]
[Result "0-1"]
[WhiteElo "2464"]
[BlackElo "2863"]
[TimeControl "180+1"]
[EndTime "10:42:50 PDT"]
[Termination "rasmussvane won by checkmate"]

1. d4 {[%clk 0:03:00.9]} 1... d5 {[%clk 0:02:59]} 2. c4 {[%clk 0:03:00.9]} 2...
e6 {[%clk 0:02:59]} 3. Nf3 {[%clk 0:03:00.5]} 3... a6 {[%clk 0:02:59.2]} 4. cxd5
{[%clk 0:02:57.7]} 4... exd5 {[%clk 0:03:00.1]} 5. Nc3 {[%clk 0:02:58.3]} 5...
Nf6 {[%clk 0:03:00.1]} 6. Bg5 {[%clk 0:02:56]} 6... Be6 {[%clk 0:03:00.1]} 7. e3
{[%clk 0:02:55]} 7... Bd6 {[%clk 0:03:00.5]} 8. Bd3 {[%clk 0:02:54.8]} 8... Nbd7
{[%clk 0:03:01]} 9. O-O {[%clk 0:02:54.6]} 9... c6 {[%clk 0:03:01.6]} 10. Rb1
{[%clk 0:02:48]} 10... Qc7 {[%clk 0:03:01]} 11. b4 {[%clk 0:02:16.6]} 11... O-O
{[%clk 0:02:56.1]} 12. a4 {[%clk 0:02:15]} 12... b5 {[%clk 0:02:56.2]} 13. Qc2
{[%clk 0:01:47.5]} 13... Bg4 {[%clk 0:02:53.4]} 14. h3 {[%clk 0:01:31.7]} 14...
Bh5 {[%clk 0:02:52.7]} 15. Nh4 {[%clk 0:01:22.1]} 15... Rfc8 {[%clk 0:02:45.3]}
16. Nf5 {[%clk 0:01:17.4]} 16... Bg6 {[%clk 0:02:41.1]} 17. Nxd6 {[%clk
0:01:14.6]} 17... Qxd6 {[%clk 0:02:42]} 18. Bf4 {[%clk 0:01:10.3]} 18... Qe7
{[%clk 0:02:41.4]} 19. Rfc1 {[%clk 0:01:09.3]} 19... Nb6 {[%clk 0:02:38]} 20.
Bxg6 {[%clk 0:00:49.6]} 20... hxg6 {[%clk 0:02:37.4]} 21. Qd3 {[%clk 0:00:32.9]}
21... Nc4 {[%clk 0:02:35.7]} 22. a5 {[%clk 0:00:18.2]} 22... Re8 {[%clk
0:02:35.2]} 23. Re1 {[%clk 0:00:14.8]} 23... Qe6 {[%clk 0:02:31.9]} 24. Bg5
{[%clk 0:00:11.9]} 24... Ne4 {[%clk 0:02:25.7]} 25. Nxe4 {[%clk 0:00:11.6]}
25... dxe4 {[%clk 0:02:26.6]} 26. Qe2 {[%clk 0:00:11.4]} 26... f6 {[%clk
0:02:27.1]} 27. Bf4 {[%clk 0:00:11.4]} 27... Rad8 {[%clk 0:02:25.8]} 28. Rbc1
{[%clk 0:00:10.8]} 28... Kf7 {[%clk 0:02:25.6]} 29. Rc2 {[%clk 0:00:10.9]} 29...
g5 {[%clk 0:02:12.1]} 30. Bg3 {[%clk 0:00:09.7]} 30... Kg6 {[%clk 0:02:07.4]}
31. Rec1 {[%clk 0:00:09.4]} 31... Rd7 {[%clk 0:01:57.5]} 32. Rxc4 {[%clk
0:00:09.2]} 32... bxc4 {[%clk 0:01:58.4]} 33. Rxc4 {[%clk 0:00:10.1]} 33... Rb7
{[%clk 0:01:44.2]} 34. Rc5 {[%clk 0:00:09.8]} 34... Ra8 {[%clk 0:01:40.3]} 35.
Qc2 {[%clk 0:00:08.3]} 35... Rc8 {[%clk 0:01:33.4]} 36. d5 {[%clk 0:00:08.3]}
36... Qe8 {[%clk 0:01:23.4]} 37. dxc6 {[%clk 0:00:08.3]} 37... Rxb4 {[%clk
0:01:22.8]} 38. c7 {[%clk 0:00:08.1]} 38... Kh6 {[%clk 0:01:17.3]} 39. Rc6
{[%clk 0:00:07]} 39... Qd7 {[%clk 0:01:11.5]} 40. Rxa6 {[%clk 0:00:05.8]} 40...
Qb5 {[%clk 0:01:09.1]} 41. Rb6 {[%clk 0:00:03]} 41... Qxa5 {[%clk 0:01:03.6]}
42. Rxb4 {[%clk 0:00:02.7]} 42... Qxb4 {[%clk 0:01:04.5]} 43. Kh2 {[%clk
0:00:02.6]} 43... Qe7 {[%clk 0:00:59.5]} 44. Qc6 {[%clk 0:00:02.2]} 44... Kg6
{[%clk 0:00:58.2]} 45. Qc4 {[%clk 0:00:02.5]} 45... Qe8 {[%clk 0:00:53.9]} 46.
Qa6 {[%clk 0:00:03]} 46... Qd7 {[%clk 0:00:52]} 47. Qb7 {[%clk 0:00:03.2]} 47...
Qe6 {[%clk 0:00:51.8]} 48. Qb5 {[%clk 0:00:02.4]} 48... Rh8 {[%clk 0:00:49.6]}
49. Qb7 {[%clk 0:00:02.3]} 49... g4 {[%clk 0:00:48.8]} 50. h4 {[%clk 0:00:02.7]}
50... Kh5 {[%clk 0:00:40]} 51. Qb8 {[%clk 0:00:03.6]} 51... Rc8 {[%clk
0:00:39.2]} 52. Qb7 {[%clk 0:00:04]} 52... g5 {[%clk 0:00:37.1]} 53. hxg5 {[%clk
0:00:03.7]} 53... Kxg5 {[%clk 0:00:38]} 54. Qb5+ {[%clk 0:00:03.5]} 54... Kg6
{[%clk 0:00:38.1]} 55. Bf4 {[%clk 0:00:03.9]} 55... Qe7 {[%clk 0:00:32.5]} 56.
Kg3 {[%clk 0:00:03.2]} 56... Qe6 {[%clk 0:00:32.8]} 57. Qb7 {[%clk 0:00:02.8]}
57... Rh8 {[%clk 0:00:31.6]} 58. Qb8 {[%clk 0:00:02.9]} 58... Rc8 {[%clk
0:00:30.8]} 59. Qb7 {[%clk 0:00:03]} 59... Qf5 {[%clk 0:00:31]} 60. Qb8 {[%clk
0:00:02.9]} 60... Kg7 {[%clk 0:00:27.8]} 61. Qb7 {[%clk 0:00:03]} 61... Kf7
{[%clk 0:00:26.8]} 62. Qb8 {[%clk 0:00:03.2]} 62... Kg6 {[%clk 0:00:24]} 63. Qb7
{[%clk 0:00:03.3]} 63... Qd7 {[%clk 0:00:20.5]} 64. Qb8 {[%clk 0:00:03.6]} 64...
Kf7 {[%clk 0:00:19.7]} 65. Qb7 {[%clk 0:00:03.5]} 65... Qe6 {[%clk 0:00:18.3]}
66. Qb8 {[%clk 0:00:03.8]} 66... Ke7 {[%clk 0:00:17.5]} 67. Qb7 {[%clk
0:00:04.1]} 67... Kf8 {[%clk 0:00:17.1]} 68. Qb8 {[%clk 0:00:04.3]} 68... Kg8
{[%clk 0:00:17.6]} 69. Qb7 {[%clk 0:00:04.7]} 69... Kg7 {[%clk 0:00:18]} 70. Qb8
{[%clk 0:00:04.9]} 70... Qd7 {[%clk 0:00:16]} 71. Qb7 {[%clk 0:00:05]} 71... Re8
{[%clk 0:00:16.2]} 72. Qb8 {[%clk 0:00:04.5]} 72... Kg6 {[%clk 0:00:16.2]} 73.
Qb7 {[%clk 0:00:03.6]} 73... Qc8 {[%clk 0:00:14.6]} 74. Qb8 {[%clk 0:00:03.1]}
74... Qe6 {[%clk 0:00:14.1]} 75. Qd8 {[%clk 0:00:01.8]} 75... Kf7 {[%clk
0:00:13.8]} 76. Qb8 {[%clk 0:00:01.6]} 76... Qd7 {[%clk 0:00:13.5]} 77. Qb7
{[%clk 0:00:01.6]} 77... Rc8 {[%clk 0:00:13.8]} 78. Qb6 {[%clk 0:00:01.8]} 78...
Qe6 {[%clk 0:00:14.6]} 79. Qb7 {[%clk 0:00:02.2]} 79... Ke7 {[%clk 0:00:14.5]}
80. Qb8 {[%clk 0:00:03.1]} 80... Qd7 {[%clk 0:00:14.9]} 81. Qb7 {[%clk
0:00:03.6]} 81... f5 {[%clk 0:00:15.4]} 82. Qb4+ {[%clk 0:00:04.1]} 82... Kf7
{[%clk 0:00:15.3]} 83. Qb6 {[%clk 0:00:05]} 83... Qe6 {[%clk 0:00:15.5]} 84. Qb7
{[%clk 0:00:05.4]} 84... Re8 {[%clk 0:00:14.3]} 85. Qb8 {[%clk 0:00:05.6]} 85...
Rc8 {[%clk 0:00:14.1]} 86. Qb7 {[%clk 0:00:06]} 86... Kg6 {[%clk 0:00:14.6]} 87.
Qb8 {[%clk 0:00:06.4]} 87... Qd7 {[%clk 0:00:15]} 88. Qb7 {[%clk 0:00:06.9]}
88... Rh8 {[%clk 0:00:14.8]} 89. Qb8 {[%clk 0:00:07]} 89... Qh7 {[%clk
0:00:14.8]} 90. c8=Q {[%clk 0:00:05.8]} 90... Qh2# {[%clk 0:00:14.2]} 0-1